bitfinex/quotes_BTCUSD_20240620
["timestamp","ask_amount","ask_price","bid_price","bid_amount"]
[1718915516492,0.29771604,65147.0,65134.0,0.09508634]
[1718915516652,0.0747,65139.0,65136.0,0.0981]
[1718915516856,0.0747,65139.0,65136.0,0.19318634]
[1718915516857,0.02648397,65138.0,65136.0,0.19318634]
[1718915517088,0.02648397,65137.0,65136.0,0.19318634]
[1718915518742,0.03248397,65137.0,65136.0,0.19318634]
[1718915519347,0.03248397,65137.0,65136.0,0.38446806]
[1718915519622,0.03248397,65137.0,65136.0,0.60443821]
[1718915520074,0.03292611,65137.0,65136.0,0.60443821]
[1718915520957,0.02692611,65137.0,65136.0,0.60443821]
[1718915522915,0.10187753,65147.0,65138.0,0.21997015]
[1718915523033,0.10187753,65147.0,65141.0,0.1165]
[1718915523034,0.02678409,65146.0,65141.0,0.1165]
[1718915523241,0.02678409,65146.0,65141.0,0.3165]
[1718915523448,0.02678409,65145.0,65141.0,0.1165]
[1718915523691,0.02678409,65144.0,65141.0,0.1165]
[1718915523900,0.02678409,65143.0,65141.0,0.1165]
[1718915524064,0.02678409,65142.0,65141.0,0.1165]
[1718915525317,0.03178409,65142.0,65141.0,0.1165]
[1718915525713,0.03878409,65142.0,65141.0,0.1165]
[1718915525935,0.012,65142.0,65141.0,0.33647015]
[1718915526133,0.03901083,65142.0,65141.0,0.33647015]
[1718915527262,0.03901083,65142.0,65141.0,0.43637015]
[1718915529604,0.03898848,65142.0,65141.0,0.43637015]
[1718915531945,0.03898848,65142.0,65141.0,0.4362928]
[1718915532380,0.0385224,65142.0,65141.0,0.4362928]
[1718915534827,0.0385224,65142.0,65141.0,0.4372388]
[1718915535443,0.03806747,65142.0,65141.0,0.4372388]
[1718915537043,0.03812861,65142.0,65141.0,0.4372388]
[1718915538662,0.03814453,65142.0,65141.0,0.4372388]
[1718915541896,0.012,65142.0,65141.0,0.4372388]
[1718915542105,0.03805476,65142.0,65141.0,0.21726865]
[1718915542292,0.03805476,65142.0,65141.0,0.4372388]
[1718915542497,0.03805476,65142.0,65141.0,0.41726865]
[1718915542675,0.03805476,65142.0,65141.0,0.21726865]
[1718915545011,0.03687897,65142.0,65141.0,0.21726865]
[1718915548004,0.03748995,65142.0,65141.0,0.21726865]
[1718915551268,0.03748995,65142.0,65141.0,0.11736865]
[1718915551481,0.03748995,65142.0,65141.0,0.000946]
[1718915553202,0.03748995,65142.0,65133.0,0.2201]
[1718915553203,0.11218995,65142.0,65133.0,0.2201]
[1718915553399,0.0747,65139.0,65133.0,0.2201]
[1718915553571,0.02548995,65138.0,65133.0,0.2201]
[1718915553748,0.02548995,65137.0,65133.0,0.2201]
[1718915553951,0.02548995,65136.0,65133.0,0.2201]
[1718915554171,0.02548995,65135.0,65133.0,0.2201]
[1718915554369,0.0747,65139.0,65133.0,0.2201]
[1718915554370,0.0252161,65134.0,65133.0,0.2201]
[1718915556157,0.0252161,65134.0,65133.0,0.2231]
[1718915556385,0.02511102,65134.0,65133.0,0.2231]
[1718915556607,0.02611102,65134.0,65133.0,0.2231]
[1718915557160,0.02511102,65134.0,65133.0,0.2231]
[1718915557593,0.02449816,65134.0,65133.0,0.31818634]
[1718915558193,0.02449816,65134.0,65133.0,0.31518634]
[1718915558439,0.02449816,65134.0,65133.0,0.31618634]
[1718915558845,0.02449816,65134.0,65133.0,0.2211]
[1718915559066,0.02449816,65134.0,65133.0,0.31618634]
[1718915560664,0.02483476,65134.0,65133.0,0.31618634]
[1718915561066,0.02483476,65134.0,65133.0,0.2211]
[1718915561832,0.0747,65141.0,65133.0,0.31618634]
[1718915561988,0.0747,65141.0,65135.0,0.07628172]
[1718915562620,0.15256112,65145.0,65135.0,0.07628172]
[1718915562815,0.0747,65142.0,65135.0,0.07628172]
[1718915563019,0.03,65141.0,65135.0,0.07628172]
[1718915563456,0.03,65141.0,65134.0,0.09508634]
[1718915563596,0.031,65141.0,65134.0,0.09508634]
[1718915564344,0.031,65141.0,65133.0,0.2201]
[1718915564345,0.031,65141.0,65133.0,0.4201]
[1718915564497,0.031,65141.0,65133.0,0.2201]
[1718915564700,0.031,65141.0,65134.0,0.09508634]
[1718915565021,0.023,65141.0,65134.0,0.09508634]
[1718915565246,0.05002611,65141.0,65134.0,0.09508634]
[1718915565421,0.05802611,65141.0,65134.0,0.09508634]
[1718915565622,0.05702611,65141.0,65134.0,0.09508634]
[1718915565922,0.06502611,65141.0,65134.0,0.09508634]
[1718915566120,0.02922872,65140.0,65134.0,0.09508634]
[1718915567119,0.02922872,65140.0,65134.0,0.09603234]
[1718915567319,0.006,65140.0,65134.0,0.09603234]
[1718915568415,0.006,65140.0,65134.0,0.000946]
[1718915569046,0.013,65140.0,65134.0,0.000946]
[1718915569219,0.0747,65139.0,65134.0,0.000946]
[1718915570453,0.0787,65139.0,65134.0,0.000946]
[1718915570656,0.0837,65139.0,65134.0,0.000946]
[1718915570837,0.009,65139.0,65134.0,0.000946]
[1718915571654,0.00957424,65138.0,65134.0,0.000946]
[1718915571851,0.00957424,65137.0,65134.0,0.000946]
[1718915572210,0.00957424,65136.0,65134.0,0.000946]
[1718915572513,0.00957424,65135.0,65134.0,0.000946]
[1718915576904,0.03351001,65135.0,65134.0,0.000946]
[1718915581395,0.03351001,65135.0,65134.0,0.110946]
[1718915582391,0.02393577,65135.0,65134.0,0.110946]
[1718915582600,0.03351014,65135.0,65134.0,0.110946]
[1718915585395,0.02393577,65135.0,65134.0,0.110946]
[1718915585598,0.03392647,65135.0,65134.0,0.110946]
[1718915588040,0.05692647,65135.0,65134.0,0.110946]
[1718915588648,0.06501464,65135.0,65134.0,0.110946]
[1718915589009,0.06516038,65135.0,65134.0,0.110946]
[1718915591505,0.04708151,65135.0,65134.0,0.110946]
[1718915591700,0.06464186,65135.0,65134.0,0.110946]
[1718915594814,0.06464186,65135.0,65134.0,0.000946]
[1718915597910,0.08160383,65135.0,65134.0,0.000946]
[1718915598090,0.13934186,65135.0,65128.0,0.07628172]
[1718915598307,0.04708151,65134.0,65128.0,0.07628172]
[1718915598511,0.0747,65131.0,65126.0,0.2141]
[1718915598732,0.04708151,65130.0,65126.0,0.2141]
[1718915598892,0.02408151,65129.0,65126.0,0.2141]
[1718915599088,0.04708151,65128.0,65126.0,0.2141]
[1718915599288,0.02408151,65128.0,65126.0,0.2141]
[1718915599494,0.04708151,65128.0,65126.0,0.2141]
[1718915600659,0.04708151,65128.0,65127.0,0.0140101]
[1718915601814,0.06515683,65128.0,65127.0,0.0140101]
[1718915602140,0.04708151,65128.0,65127.0,0.0140101]
[1718915603785,0.04708151,65128.0,65127.0,0.1353101]
[1718915606966,0.22034012,65143.0,65127.0,0.1353101]
[1718915607172,0.0747,65136.0,65128.0,0.07628172]
[1718915607372,0.15256112,65135.0,65128.0,0.07628172]
[1718915609056,0.023,65134.0,65131.0,0.4087]
[1718915609273,0.011,65135.0,65134.0,0.20997015]
[1718915609446,0.011,65135.0,65134.0,0.29467015]
[1718915609946,0.08222778,65143.0,65134.0,0.29467015]
[1718915609947,0.08222778,65143.0,65135.0,0.2147]
[1718915610128,0.06822778,65143.0,65140.0,0.1159]
[1718915610327,0.00086,65148.0,65140.0,0.1159]
[1718915610494,0.15256112,65147.0,65140.0,0.1159]
[1718915610847,0.15256112,65147.0,65141.0,0.0908]
[1718915611045,0.1,65146.0,65141.0,0.0908]
[1718915611211,0.25256112,65146.0,65141.0,0.0908]
[1718915611642,0.023,65145.0,65141.0,0.0908]
[1718915611902,0.18453717,65144.0,65141.0,0.0908]
[1718915612110,0.0519574,65143.0,65141.0,0.0908]
[1718915612250,0.0289574,65142.0,65141.0,0.0908]
[1718915612451,0.023,65143.0,65141.0,0.0908]
[1718915612756,0.0289574,65142.0,65141.0,0.0908]
[1718915614379,0.0419574,65142.0,65141.0,0.0908]
[1718915614582,0.0539574,65142.0,65141.0,0.0908]
[1718915615707,0.025,65142.0,65141.0,0.0908]
[1718915615909,0.05372243,65142.0,65141.0,0.0908]
[1718915622954,0.05374299,65142.0,65141.0,0.0908]
[1718915624217,0.05374299,65142.0,65141.0,0.2058]
[1718915624768,0.05374299,65142.0,65141.0,0.42577015]
[1718915625375,0.025,65142.0,65141.0,0.42577015]
[1718915625576,0.05411902,65142.0,65141.0,0.42577015]
[1718915626367,0.05411902,65142.0,65141.0,0.47581717]
[1718915626811,0.07805288,65142.0,65141.0,0.47581717]
[1718915627011,0.07805288,65142.0,65141.0,0.42577015]
[1718915627311,0.06505288,65142.0,65141.0,0.42577015]
[1718915627623,0.05305288,65142.0,65141.0,0.42577015]
[1718915627850,0.06005288,65142.0,65141.0,0.42577015]
[1718915628436,0.05982565,65142.0,65141.0,0.42577015]
[1718915631633,0.03093386,65142.0,65141.0,0.42577015]
[1718915631777,0.05920802,65142.0,65141.0,0.42577015]
[1718915633404,0.05920802,65142.0,65141.0,0.42671615]
[1718915634728,0.03093386,65142.0,65141.0,0.42671615]
[1718915634931,0.05919829,65142.0,65141.0,0.42671615]
[1718915637196,0.03093386,65142.0,65141.0,0.42671615]
[1718915637429,0.05918015,65142.0,65141.0,0.42671615]
[1718915638001,0.05897529,65142.0,65141.0,0.42671615]
[1718915640149,0.05597529,65142.0,65141.0,0.42671615]
[1718915640609,0.05197529,65142.0,65141.0,0.42671615]
[1718915641136,0.05215072,65142.0,65141.0,0.42771615]
[1718915645860,0.05215072,65142.0,65141.0,0.207746]
[1718915646436,0.02821686,65142.0,65141.0,0.42771615]
[1718915646651,0.02821686,65142.0,65141.0,0.207746]
[1718915647226,0.02821686,65142.0,65141.0,0.42771615]
[1718915647430,0.02609543,65142.0,65141.0,0.207746]
[1718915648810,0.02609543,65142.0,65141.0,0.42771615]
[1718915650460,0.02653254,65142.0,65141.0,0.42771615]
[1718915656570,0.02408283,65142.0,65141.0,0.42771615]
[1718915656841,0.0507245,65142.0,65141.0,0.42771615]
[1718915659735,0.05053919,65142.0,65141.0,0.42771615]
[1718915662805,0.05050201,65142.0,65141.0,0.42771615]
[1718915663236,0.05000201,65142.0,65141.0,0.207746]
[1718915663433,0.05000201,65142.0,65141.0,0.001946]
[1718915663635,0.07300201,65142.0,65141.0,0.001946]
[1718915664417,0.05000201,65142.0,65141.0,0.50371615]
[1718915664975,0.05900201,65142.0,65141.0,0.50371615]
[1718915665756,0.05000201,65142.0,65141.0,0.50371615]
[1718915665918,0.05000201,65142.0,65141.0,0.50271615]
[1718915666142,0.04862542,65142.0,65141.0,0.50271615]
[1718915666337,0.05662542,65142.0,65141.0,0.50271615]
[1718915666884,0.04862542,65142.0,65141.0,0.50271615]
[1718915667079,0.04862542,65142.0,65141.0,0.50371615]
[1718915669069,0.04907409,65142.0,65141.0,0.50371615]
[1718915672208,0.04927561,65142.0,65141.0,0.50371615]
[1718915675393,0.0489878,65142.0,65141.0,0.50371615]
[1718915677419,0.04900754,65142.0,65141.0,0.50371615]
[1718915678707,0.04910313,65142.0,65141.0,0.50371615]
[1718915681704,0.02358283,65142.0,65141.0,0.50371615]
[1718915681923,0.04909003,65142.0,65141.0,0.50371615]
[1718915687621,0.04909003,65142.0,65141.0,0.42901615]
[1718915688029,0.02358283,65142.0,65141.0,0.42901615]
[1718915688252,0.0489657,65142.0,65141.0,0.42901615]
[1718915691173,0.04817023,65142.0,65141.0,0.42901615]
[1718915694185,0.0481225,65142.0,65141.0,0.42901615]
[1718915697341,0.02444283,65142.0,65141.0,0.42901615]
[1718915697542,0.04899576,65142.0,65141.0,0.42901615]
[1718915700479,0.02444283,65142.0,65141.0,0.42901615]
[1718915700686,0.04916344,65142.0,65141.0,0.42901615]
[1718915703489,0.15566783,65151.0,65145.0,0.2]
[1718915703490,0.15568916,65151.0,65145.0,0.2]
[1718915703695,0.023,65150.0,65145.0,0.2]
[1718915703918,0.01422762,65149.0,65145.0,0.2]
[1718915704113,0.03722762,65148.0,65145.0,0.2]
[1718915704326,0.03722762,65148.0,65147.0,0.2]
[1718915704540,0.03722762,65148.0,65146.0,0.33547015]
[1718915704541,0.03722763,65148.0,65146.0,0.33547015]
[1718915704729,0.01422763,65147.0,65146.0,0.33547015]
[1718915704934,0.03722763,65147.0,65146.0,0.33547015]
[1718915705722,0.03722763,65147.0,65144.0,0.2]
[1718915705948,0.01422763,65146.0,65144.0,0.2]
[1718915706210,0.01422763,65145.0,65144.0,0.2]
[1718915706420,0.03,65147.0,65144.0,0.2]
[1718915706539,0.01469935,65145.0,65144.0,0.2]
[1718915706991,0.01469935,65145.0,65144.0,0.21]
[1718915707205,0.01469935,65145.0,65144.0,0.21997015]
[1718915708563,0.02169935,65145.0,65144.0,0.21997015]
[1718915709579,0.02197919,65145.0,65144.0,0.21997015]
[1718915712594,0.007,65145.0,65144.0,0.21997015]
[1718915712796,0.02223312,65145.0,65144.0,0.21997015]
[1718915713914,0.02223312,65145.0,65142.0,0.2]
[1718915714031,0.01523312,65144.0,65142.0,0.2]
[1718915714227,0.01523312,65143.0,65142.0,0.2]
[1718915715391,0.01623312,65143.0,65142.0,0.2]
[1718915715619,0.001,65143.0,65142.0,0.2]
[1718915715799,0.01783006,65143.0,65142.0,0.2]
[1718915716376,0.01783006,65143.0,65142.0,0.21997015]
[1718915721819,0.01783006,65143.0,65141.0,0.000946]
[1718915722197,0.03748126,65142.0,65141.0,0.000946]
[1718915722717,0.03748126,65142.0,65130.0,0.1]
[1718915722718,0.22726112,65142.0,65130.0,0.1]
[1718915722924,0.04472664,65155.0,65133.0,0.1]
[1718915722925,0.0747,65136.0,65133.0,0.1]
[1718915723114,0.0747,65139.0,65133.0,0.1]
[1718915723464,0.0747,65139.0,65132.0,0.1]
[1718915723646,0.0747,65139.0,65131.0,0.1]
[1718915724657,0.0777,65139.0,65131.0,0.1]
[1718915724874,0.023,65138.0,65133.0,0.1]
[1718915726838,0.005,65138.0,65137.0,0.21997015]
[1718915727043,0.005,65138.0,65137.0,0.29467015]
[1718915727198,0.005,65138.0,65137.0,0.49647015]
[1718915727615,0.009,65138.0,65137.0,0.49647015]
[1718915728216,0.004,65138.0,65137.0,0.49647015]
[1718915728413,0.009,65138.0,65137.0,0.49647015]
[1718915729043,0.005,65138.0,65137.0,0.77657088]
[1718915729249,0.02408499,65142.0,65141.0,0.21997015]
[1718915729466,0.02408499,65142.0,65141.0,0.48957015]
[1718915729676,0.02408499,65142.0,65141.0,0.58957015]
[1718915729872,0.02408499,65142.0,65141.0,0.67516541]
[1718915730733,0.02508499,65142.0,65141.0,0.67516541]
[1718915730936,0.06654462,65142.0,65141.0,0.67516541]
[1718915731111,0.02508499,65142.0,65141.0,0.67516541]
[1718915732609,0.05017048,65142.0,65141.0,0.67516541]
[1718915732821,0.04917048,65142.0,65141.0,0.67516541]
[1718915733170,0.04917048,65142.0,65141.0,0.67616541]
[1718915734495,0.04921003,65142.0,65141.0,0.67616541]
[1718915736191,0.04921003,65142.0,65141.0,0.59057015]
[1718915737551,0.04922429,65142.0,65141.0,0.59057015]
[1718915742455,0.0251393,65142.0,65141.0,0.59057015]
[1718915743834,0.02510344,65142.0,65141.0,0.59057015]
[1718915745233,0.02510344,65142.0,65141.0,0.59006026]
[1718915745453,0.02510344,65142.0,65141.0,0.66778906]
[1718915747055,0.04567551,65143.0,65142.0,0.21946026]
[1718915747256,0.07098264,65143.0,65141.0,0.001]
[1718915747386,0.07098264,65143.0,65141.0,0.201]
[1718915747387,0.02530713,65142.0,65141.0,0.201]
[1718915747581,0.02530713,65142.0,65141.0,0.22046026]
[1718915748765,0.02530713,65142.0,65141.0,0.21946026]
[1718915749854,0.02530713,65142.0,65141.0,0.001]
[1718915750070,0.02530713,65142.0,65137.0,0.000946]
[1718915750071,0.0977,65142.0,65137.0,0.000946]
[1718915750275,0.0747,65138.0,65137.0,0.000946]
[1718915750455,0.09998241,65138.0,65137.0,0.000946]
[1718915750617,0.10552794,65138.0,65137.0,0.000946]
[1718915751501,0.28108906,65138.0,65137.0,0.000946]
[1718915752280,0.23547503,65138.0,65137.0,0.000946]
[1718915753212,0.24727075,65138.0,65137.0,0.000946]
[1718915753820,0.25227075,65138.0,65137.0,0.000946]
[1718915755526,0.28953538,65138.0,65137.0,0.000946]
[1718915755727,0.38953538,65138.0,65124.0,0.31946026]
[1718915755936,0.0747,65131.0,65124.0,0.1]
[1718915756245,0.04331503,65130.0,65124.0,0.1]
[1718915756425,0.03707813,65129.0,65124.0,0.1]
[1718915756620,0.03707813,65128.0,65124.0,0.1]
[1718915756830,0.04330652,65128.0,65125.0,0.21946026]
[1718915758863,0.04730652,65128.0,65125.0,0.21946026]
[1718915759283,0.05230652,65128.0,65125.0,0.21946026]
[1718915759490,0.05424005,65128.0,65125.0,0.21946026]
[1718915760237,0.05424005,65128.0,65124.0,0.1]
[1718915761026,0.05424005,65128.0,65124.0,0.31946026]
[1718915761435,0.05424005,65128.0,65124.0,0.1]
[1718915762566,0.05376814,65128.0,65124.0,0.1]
[1718915764041,0.05376814,65128.0,65127.0,0.0139561]
[1718915765474,0.06376814,65128.0,65127.0,0.0139561]
[1718915765695,0.04822839,65128.0,65127.0,0.0139561]
[1718915765847,0.0856636,65128.0,65127.0,0.0139561]
[1718915766200,0.3736452,65128.0,65127.0,0.0139561]
[1718915766337,0.35760884,65128.0,65127.0,0.0139561]
[1718915768979,0.35735308,65128.0,65127.0,0.0139561]
[1718915769207,0.34735308,65128.0,65127.0,0.0139561]
[1718915769958,0.03717945,65128.0,65127.0,0.0139561]
[1718915770344,0.04491165,65128.0,65127.0,0.0139561]
[1718915770685,0.03717945,65128.0,65127.0,0.0139561]
[1718915770978,0.0449087,65128.0,65127.0,0.0139561]
[1718915771787,0.00772925,65128.0,65127.0,0.0139561]
[1718915771993,0.04508054,65128.0,65127.0,0.0139561]
[1718915772257,0.03735129,65128.0,65127.0,0.0139561]
[1718915772451,0.04508054,65128.0,65127.0,0.0139561]
[1718915774536,0.09105463,65128.0,65127.0,0.0139561]
[1718915775067,0.05370334,65128.0,65127.0,0.0139561]
[1718915775274,0.09103814,65128.0,65127.0,0.0139561]
[1718915777184,0.19351704,65128.0,65127.0,0.0139561]
[1718915778229,0.19350463,65128.0,65127.0,0.0139561]
[1718915781330,0.19336024,65128.0,65127.0,0.0139561]
[1718915784076,0.15618224,65128.0,65127.0,0.0139561]
[1718915784970,0.1937553,65128.0,65127.0,0.01012142]
[1718915785176,0.1937553,65128.0,65127.0,0.0068166]
[1718915785503,0.26602132,65128.0,65127.0,0.00243993]
[1718915787703,0.26178515,65128.0,65127.0,0.00243993]
[1718915787920,0.26178515,65128.0,65127.0,1e-08]
[1718915790887,0.26169516,65128.0,65127.0,1e-08]
[1718915791060,0.26169517,65128.0,65127.0,1e-08]
[1718915791270,0.33185098,65128.0,65127.0,1e-08]
[1718915791477,0.3580205,65128.0,65127.0,1e-08]
[1718915791669,0.28786471,65128.0,65127.0,1e-08]
[1718915794528,0.36572583,65128.0,65127.0,1e-08]
[1718915794674,0.46342583,65128.0,65127.0,1e-08]
[1718915795258,0.38872583,65128.0,65127.0,1e-08]
[1718915795453,0.46342583,65128.0,65127.0,1e-08]
[1718915795865,0.47442583,65128.0,65127.0,0.00100001]
[1718915797038,0.47549017,65128.0,65127.0,0.00100001]
[1718915797380,0.47549017,65128.0,65123.0,1e-08]
[1718915797609,0.0747,65124.0,65123.0,1e-08]
[1718915797844,0.13360145,65124.0,65123.0,1e-08]
[1718915798089,0.14129305,65124.0,65123.0,1e-08]
[1718915798285,0.21196889,65124.0,65123.0,1e-08]
[1718915798492,0.14129305,65124.0,65123.0,1e-08]
[1718915798839,0.21196889,65124.0,65123.0,1e-08]
[1718915799077,0.14129305,65124.0,65123.0,1e-08]
[1718915799481,0.21196889,65124.0,65123.0,1e-08]
[1718915799692,0.14129305,65124.0,65123.0,1e-08]
[1718915800049,0.1053916,65124.0,65123.0,1e-08]
[1718915800300,0.2121176,65124.0,65123.0,1e-08]
[1718915800456,0.14136922,65124.0,65123.0,1e-08]
[1718915800880,0.1374176,65124.0,65123.0,1e-08]
[1718915801090,0.14136922,65124.0,65123.0,1e-08]
[1718915801597,0.2121176,65124.0,65123.0,1e-08]
[1718915801811,0.14136922,65124.0,65123.0,1e-08]
[1718915802235,0.2121176,65124.0,65123.0,1e-08]
[1718915802446,0.14136922,65124.0,65123.0,1e-08]
[1718915803236,0.18715794,65124.0,65123.0,1e-08]
[1718915803901,0.25718499,65124.0,65120.0,0.1184]
[1718915804027,0.0747,65121.0,65120.0,0.1184]
[1718915804245,0.11760111,65121.0,65120.0,0.1184]
[1718915806310,0.11792706,65121.0,65120.0,0.1184]
[1718915806610,0.11792706,65121.0,65118.0,0.127893]
[1718915806813,0.03554617,65120.0,65118.0,0.127893]
[1718915807247,0.04322462,65120.0,65118.0,0.127893]
[1718915808102,0.06900549,65120.0,65118.0,0.127893]
[1718915809190,0.07000549,65120.0,65119.0,0.01748199]
[1718915809410,0.07000549,65120.0,65119.0,0.01348199]
[1718915809617,0.07053444,65120.0,65119.0,0.01348199]
[1718915810250,0.07153444,65120.0,65119.0,0.01748199]
[1718915812569,0.09393736,65120.0,65119.0,0.01748199]
[1718915812777,0.05955072,65120.0,65119.0,0.01748199]
[1718915812974,0.09395113,65120.0,65119.0,0.01748199]
[1718915815574,0.05955072,65120.0,65119.0,0.01748199]
[1718915815811,0.09396226,65120.0,65119.0,0.01748199]
[1718915818705,0.05955072,65120.0,65119.0,0.01748199]
[1718915818924,0.0940956,65120.0,65119.0,0.01748199]
[1718915819396,0.16348137,65120.0,65119.0,0.01748199]
[1718915820468,0.2124005,65120.0,65119.0,0.01748199]
[1718915821026,0.2124005,65120.0,65119.0,0.22548199]
[1718915824572,0.1377005,65120.0,65119.0,0.22548199]
[1718915824815,0.2124005,65120.0,65119.0,0.22548199]
[1718915825195,0.17841581,65120.0,65119.0,0.22548199]
[1718915825437,0.21354857,65120.0,65119.0,0.22548199]
[1718915827642,0.21354857,65120.0,65119.0,0.01748199]
[1718915828309,0.21402831,65120.0,65119.0,0.01748199]
[1718915829072,0.21402831,65120.0,65119.0,0.12638199]
[1718915830894,0.24233086,65120.0,65119.0,0.12638199]
[1718915831358,0.1367724,65120.0,65119.0,0.12638199]
[1718915831513,0.24224412,65120.0,65119.0,0.21588199]
[1718915832727,0.24224412,65120.0,65119.0,0.01748199]
[1718915834417,0.24211467,65120.0,65119.0,0.01748199]
[1718915837619,0.1367724,65120.0,65119.0,0.01748199]
[1718915837803,0.2422114,65120.0,65119.0,0.01748199]
[1718915840999,0.17211045,65120.0,65119.0,0.01748199]
[1718915841206,0.24225192,65120.0,65119.0,0.01748199]
[1718915842363,0.21394937,65120.0,65119.0,0.21348199]
[1718915845272,0.2140721,65120.0,65119.0,0.21348199]
[1718915847316,0.21411021,65120.0,65119.0,0.21348199]
[1718915849884,0.13941021,65120.0,65119.0,0.21348199]
[1718915850088,0.21411021,65120.0,65119.0,0.21348199]
[1718915850333,0.22096401,65120.0,65119.0,0.21348199]
[1718915850538,0.14759193,65120.0,65119.0,0.41348199]
[1718915850740,0.22229193,65120.0,65119.0,0.21348199]
[1718915853474,0.18685551,65120.0,65119.0,0.21348199]
[1718915853631,0.22365492,65120.0,65119.0,0.21348199]
[1718915856519,0.22108746,65120.0,65119.0,0.21348199]
[1718915858531,0.07610799,65120.0,65119.0,0.21348199]
[1718915858872,0.15080799,65120.0,65119.0,0.21348199]
[1718915861160,0.22108746,65120.0,65119.0,0.21348199]
[1718915861487,0.15080799,65120.0,65119.0,0.21348199]
[1718915862712,0.11532365,65120.0,65119.0,0.21348199]
[1718915862886,0.15095669,65120.0,65119.0,0.21348199]
[1718915865926,0.1510887,65120.0,65119.0,0.21348199]
[1718915866349,0.1510887,65120.0,65119.0,0.43294225]
[1718915866563,0.0763887,65120.0,65119.0,0.43294225]
[1718915866784,0.1510887,65120.0,65119.0,0.41348199]
[1718915867352,0.1510887,65120.0,65119.0,0.21348199]
[1718915867551,0.1510887,65120.0,65119.0,0.41348199]
[1718915867807,0.1510887,65120.0,65119.0,0.21348199]
[1718915868983,0.15119519,65120.0,65119.0,0.21348199]
[1718915872202,0.15114725,65120.0,65119.0,0.21348199]
[1718915875398,0.22166968,65120.0,65119.0,0.21348199]
[1718915875641,0.14696968,65120.0,65119.0,0.21348199]
[1718915875844,0.22166968,65120.0,65119.0,0.21348199]
[1718915876645,0.21673792,65120.0,65119.0,0.21348199]
[1718915878471,0.11039189,65120.0,65119.0,0.21348199]
[1718915878709,0.2171545,65120.0,65119.0,0.21348199]
[1718915879446,0.11039189,65120.0,65119.0,0.21348199]
[1718915879650,0.2171545,65120.0,65119.0,0.21348199]
[1718915879869,0.11039189,65120.0,65119.0,0.21348199]
[1718915880119,0.14622414,65120.0,65119.0,0.21348199]
[1718915882316,0.11039189,65120.0,65119.0,0.21348199]
[1718915882472,0.14590973,65120.0,65119.0,0.21348199]
[1718915883299,0.14590973,65120.0,65119.0,0.41348199]
[1718915883508,0.14590973,65120.0,65119.0,0.21348199]
[1718915884068,0.14592206,65120.0,65119.0,0.41348199]
[1718915884274,0.14592218,65120.0,65119.0,0.41348199]
[1718915884479,0.11039189,65120.0,65119.0,0.41348199]
[1718915884799,0.1459221,65120.0,65119.0,0.41348199]
[1718915885791,0.11039189,65120.0,65119.0,0.41348199]
[1718915885967,0.14589024,65120.0,65119.0,0.41348199]
[1718915886369,0.09468415,65127.0,65120.0,0.1021]
[1718915886532,0.0747,65121.0,65120.0,0.1021]
[1718915886947,0.09879126,65121.0,65120.0,0.1021]
[1718915887951,0.09879126,65121.0,65120.0,0.1061]
[1718915889485,0.09879126,65121.0,65120.0,0.1101]
[1718915893869,0.1067982,65121.0,65120.0,0.1101]
[1718915896435,0.1244359,65121.0,65120.0,0.32956026]
[1718915896642,0.1244359,65121.0,65120.0,0.3101]
[1718915897180,0.1244359,65121.0,65120.0,0.32956026]
[1718915897387,0.1244359,65121.0,65120.0,0.41116026]
[1718915898128,0.12439529,65121.0,65120.0,0.41116026]
[1718915898723,0.12439529,65121.0,65120.0,0.3917]
[1718915900535,0.04969529,65121.0,65120.0,0.41116026]
[1718915900683,0.12439529,65121.0,65120.0,0.3917]
[1718915901340,0.1244004,65121.0,65120.0,0.3917]
[1718915901540,0.1244004,65121.0,65120.0,0.41116026]
[1718915904435,0.04969695,65121.0,65120.0,0.52116026]
[1718915904632,0.04169001,65121.0,65120.0,0.62116026]
[1718915905665,0.04169001,65121.0,65120.0,0.61116026]
[1718915905867,0.04169001,65121.0,65120.0,0.67612308]
[1718915907543,0.04124102,65121.0,65120.0,0.67612308]
[1718915910570,0.04129475,65121.0,65120.0,0.67612308]
[1718915911088,0.04129475,65121.0,65120.0,0.61116026]
[1718915911520,0.04937973,65121.0,65120.0,0.61116026]
[1718915913681,0.03217624,65121.0,65120.0,0.61116026]
[1718915913879,0.04956558,65121.0,65120.0,0.61116026]
[1718915916431,0.04956558,65121.0,65120.0,0.108]
[1718915916611,0.10687624,65121.0,65120.0,0.008]
[1718915916941,0.12369742,65121.0,65120.0,0.008]
[1718915919854,0.10687624,65121.0,65120.0,0.008]
[1718915920083,0.12411426,65121.0,65120.0,0.008]
[1718915920277,0.04941426,65121.0,65120.0,0.008]
[1718915920624,0.11602928,65121.0,65120.0,0.008]
[1718915920950,0.12410115,65121.0,65120.0,0.008]
[1718915922924,0.10686313,65121.0,65120.0,0.008]
[1718915923132,0.12420882,65121.0,65120.0,0.008]
[1718915926147,0.1242215,65121.0,65120.0,0.008]
[1718915927603,0.1242215,65121.0,65120.0,0.008946]
[1718915928001,0.12802142,65121.0,65120.0,0.008946]
[1718915929200,0.12790567,65121.0,65120.0,0.008946]
[1718915930322,0.05320567,65121.0,65120.0,0.008946]
[1718915930524,0.12790567,65121.0,65120.0,0.008946]
[1718915930722,0.1198338,65121.0,65120.0,0.008946]
[1718915930941,0.12789918,65121.0,65120.0,0.008946]
[1718915932146,0.11065656,65121.0,65120.0,0.008946]
[1718915932349,0.12772836,65121.0,65120.0,0.008946]
[1718915935424,0.12777323,65121.0,65120.0,0.208946]
[1718915935603,0.12774433,65121.0,65120.0,0.008946]
[1718915935806,0.05304433,65121.0,65120.0,0.008946]
[1718915936154,0.11967895,65121.0,65120.0,0.008946]
[1718915936570,0.12774433,65121.0,65120.0,0.008946]
[1718915936971,0.12774433,65121.0,65120.0,0.208946]
[1718915937292,0.09985315,65121.0,65120.0,0.208946]
[1718915937604,0.09985315,65121.0,65120.0,0.33800626]
[1718915938422,0.10000163,65121.0,65120.0,0.33800626]
[1718915938675,0.02530163,65121.0,65120.0,0.41720626]
[1718915938872,0.10000163,65121.0,65120.0,0.41720626]
[1718915939091,0.09193625,65121.0,65120.0,0.41720626]
[1718915939296,0.10000453,65121.0,65120.0,0.41720626]
[1718915939642,0.02530453,65121.0,65120.0,0.41720626]
[1718915939843,0.09193625,65121.0,65120.0,0.41720626]
[1718915940260,0.10000453,65121.0,65120.0,0.41720626]
[1718915941537,0.02525146,65121.0,65120.0,0.41720626]
[1718915941681,0.09995146,65121.0,65120.0,0.41720626]
[1718915944006,0.02525146,65121.0,65120.0,0.47940186]
[1718915944205,0.02525146,65121.0,65120.0,0.41720626]